bitfinex/quotes_BTCUSD_20241223
["timestamp","ask_amount","ask_price","bid_price","bid_amount"]
[1734920947787,0.000162,93981.0,93959.0,0.02406403]
[1734920947982,0.000162,93981.0,93961.0,0.023]
[1734920948140,0.000162,93981.0,93964.0,0.05946557]
[1734920948338,0.000162,93981.0,93965.0,0.00106398]
[1734920948601,0.000162,93981.0,93980.0,0.02116341]
[1734920950881,0.000162,93981.0,93980.0,0.02316341]
[1734920951407,0.1014704,93981.0,93980.0,0.02316341]
[1734920952009,0.000162,93981.0,93980.0,0.02316341]
[1734920952302,0.212777,93995.0,93980.0,0.02316341]
[1734920952527,0.15053987,93990.0,93960.0,0.17033446]
[1734920952730,0.15053987,93990.0,93961.0,0.14079782]
[1734920952934,0.15053987,93990.0,93962.0,0.023]
[1734920953154,0.15053987,93990.0,93980.0,0.003]
[1734920953357,0.15053987,93990.0,93980.0,0.02470699]
[1734920953509,0.00053987,93990.0,93980.0,0.02170699]
[1734920953917,0.00153987,93990.0,93980.0,0.02170699]
[1734920954085,0.21279,93989.0,93980.0,0.02170699]
[1734920954285,0.00153987,93990.0,93980.0,0.02170699]
[1734920955411,0.00053987,93990.0,93980.0,0.02170699]
[1734920955812,0.00253987,93990.0,93980.0,0.02170699]
[1734920956014,0.00053987,93990.0,93980.0,0.02170699]
[1734920956458,0.00253987,93990.0,93980.0,0.02170699]
[1734920956654,0.00053987,93990.0,93980.0,0.02170699]
[1734920957030,0.00253987,93990.0,93980.0,0.02170699]
[1734920957265,0.1013084,93989.0,93965.0,0.023]
[1734920957467,0.1013084,93989.0,93959.0,0.15]
[1734920957673,0.1013084,93989.0,93961.0,0.212854]
[1734920957849,0.1013084,93989.0,93962.0,0.00106397]
[1734920958052,0.1013084,93989.0,93963.0,0.212849]
[1734920958254,0.00253987,93990.0,93988.0,0.02100627]
[1734920958515,0.00053987,93990.0,93988.0,0.02100627]
[1734920958714,0.212737,94013.0,93988.0,0.02100627]
[1734920958715,0.00106397,94012.0,93989.0,0.00106394]
[1734920958961,0.00106397,94012.0,93988.0,0.01712021]
[1734920959163,0.10147027,94012.0,93989.0,0.023]
[1734920959569,0.10147027,94012.0,93990.0,0.02529192]
[1734920959927,0.00132963,94018.0,93991.0,0.023]
[1734920960126,0.00132952,94029.0,94001.0,0.15]
[1734920960288,8.55e-05,94034.0,94003.0,0.15]
[1734920960483,0.1013084,94033.0,94011.0,0.02078732]
[1734920960686,0.1013084,94033.0,94012.0,0.09195413]
[1734920961864,8.55e-05,94034.0,94013.0,0.023]
[1734920962381,8.55e-05,94034.0,94011.0,0.00774145]
[1734920962382,0.004,94033.0,94011.0,0.00774145]
[1734920962923,8.55e-05,94034.0,94011.0,0.00774145]
[1734920963147,0.0040855,94034.0,94012.0,0.06937415]
[1734920963519,8.55e-05,94034.0,94012.0,0.06937415]
[1734920964003,0.1013084,94033.0,94012.0,0.06937415]
[1734920964196,0.00132951,94032.0,94005.0,0.536]
[1734920964368,0.3140044,94031.0,94005.0,0.536]
[1734920964578,0.2127,94029.0,94005.0,0.536]
[1734920964784,0.212704,94027.0,94006.0,0.0536]
[1734920964988,0.10263791,94026.0,94006.0,0.0536]
[1734920965431,8.55e-05,94034.0,94010.0,0.17033446]
[1734920965636,0.1013084,94033.0,94025.0,0.02135415]
[1734920965846,0.00132938,94032.0,94025.0,0.02135415]
[1734920965991,0.002,94027.0,94025.0,0.02135415]
[1734920966395,8.55e-05,94034.0,94025.0,0.02135415]
[1734920966598,0.0040855,94034.0,94025.0,0.02135415]
[1734920967004,0.1013084,94033.0,94025.0,0.02135415]
[1734920967163,0.212695,94031.0,94025.0,0.02135415]
[1734920967432,0.10263778,94030.0,94026.0,0.02113254]
[1734920967618,0.212702,94029.0,94026.0,0.02113254]
[1734920967818,0.10263787,94028.0,94026.0,0.02113254]
[1734920968387,0.002,94027.0,94026.0,0.02113254]
[1734920968722,8.55e-05,94034.0,94026.0,0.02113254]
[1734920968892,0.1013084,94033.0,94026.0,0.02113254]
[1734920969090,0.003,94028.0,94026.0,0.02113254]
[1734920969252,0.1013084,94033.0,94026.0,0.02113254]
[1734920969694,0.002,94027.0,94026.0,0.02113254]
[1734920969856,0.1013084,94033.0,94026.0,0.02113254]
[1734920970280,0.003,94028.0,94026.0,0.02113254]
[1734920971356,8.54e-05,94039.0,94026.0,0.02113254]
[1734920971701,0.0492,94045.0,94027.0,0.0404184]
[1734920971906,0.002,94027.0,94026.0,0.02113254]
[1734920972257,0.04936184,94045.0,94022.0,0.10584654]
[1734920972475,0.04936184,94045.0,94026.0,0.02169771]
[1734920972643,0.004,94039.0,94026.0,0.02269771]
[1734920972849,0.04936184,94045.0,94027.0,0.01930322]
[1734920973707,0.04936184,94045.0,94030.0,0.17033446]
[1734920974129,0.04944734,94045.0,94030.0,0.17033446]
[1734920974280,0.00024734,94045.0,94030.0,0.17033446]
[1734920974481,0.00024734,94045.0,94027.0,0.01930322]
[1734920974681,0.00024734,94045.0,94028.0,0.05860009]
[1734920975308,0.00024734,94045.0,94030.0,0.17033446]
[1734920975608,0.00024734,94045.0,94028.0,0.05860009]
[1734920976300,0.1013084,94044.0,94026.0,0.02169771]
[1734920976498,0.00132914,94043.0,94030.0,0.002]
[1734920976706,0.00132914,94043.0,94023.0,0.536]
[1734920976707,0.1013084,94042.0,94023.0,0.536]
[1734920977181,0.1013084,94042.0,94020.0,0.20693504]
[1734920977324,0.00024734,94045.0,94020.0,0.07893504]
[1734920977540,0.1013084,94044.0,94041.0,0.02173595]
[1734920978705,0.1033084,94044.0,94041.0,0.02173595]
[1734920978905,0.1013084,94044.0,94041.0,0.02173595]
[1734920979359,0.00024734,94045.0,94041.0,0.02173595]
[1734920979899,0.00024734,94045.0,94041.0,0.02273595]
[1734920980648,0.212668,94043.0,94041.0,0.02273595]
[1734920980851,0.10263766,94042.0,94041.0,0.02273595]
[1734920981249,0.10263766,94042.0,94041.0,0.02173595]
[1734920981456,0.10263766,94042.0,94041.0,0.02273595]
[1734920981860,0.1013084,94042.0,94041.0,0.02173595]
[1734920982080,0.1013084,94042.0,94041.0,0.02373595]
[1734920982281,0.212673,94041.0,94023.0,0.43173595]
[1734920982500,0.10263774,94040.0,94024.0,0.06481097]
[1734920982699,0.00024734,94045.0,94040.0,0.02130022]
[1734920982884,0.001,94042.0,94030.0,0.17033446]
[1734920983222,0.001,94042.0,94024.0,0.06481097]
[1734920984281,0.1013084,94044.0,94024.0,0.06481097]
[1734920984482,0.1013084,94044.0,94040.0,0.001]
[1734920984853,0.00024734,94045.0,94039.0,0.02092533]
[1734920985695,0.00024734,94045.0,94040.0,0.001]
[1734920985897,0.00024734,94045.0,94039.0,0.02092533]
[1734920986510,8.54e-05,94064.0,94040.0,0.43173595]
[1734920986718,8.54e-05,94064.0,94050.0,0.17033446]
[1734920986917,8.54e-05,94064.0,94046.0,0.212659]
[1734920987333,8.54e-05,94064.0,94044.0,0.212666]
[1734920987534,8.54e-05,94064.0,94044.0,0.1013084]
[1734920987756,0.0488,94074.0,94046.0,0.023]
[1734920987969,0.001,94064.0,94047.0,0.18762304]
[1734920988127,0.0488,94074.0,94047.0,0.18762304]
[1734920988521,0.0488,94074.0,94047.0,0.40028204]
[1734920988726,0.212584,94081.0,94050.0,0.17033446]
[1734920988975,0.1,94090.0,94052.0,0.212648]
[1734920990008,0.0488,94091.0,94060.0,0.17033446]
[1734920990361,0.00132861,94090.0,94060.0,0.17033446]
[1734920990561,0.21257,94087.0,94060.0,0.17033446]
[1734920990770,0.21257,94087.0,94072.0,0.02163927]
[1734920991586,0.0488,94091.0,94072.0,0.02163927]
[1734920991781,0.00016181,94075.0,94072.0,0.02163927]
[1734920991988,0.00016181,94075.0,94072.0,0.02363927]
[1734920992396,0.00016181,94075.0,94062.0,0.04563927]
[1734920992621,0.00016181,94075.0,94061.0,0.43173595]
[1734920992622,0.00016181,94075.0,94063.0,0.05526613]
[1734920993078,0.00016181,94075.0,94064.0,0.212621]
[1734920993411,0.00016181,94075.0,94074.0,0.0210516]
[1734920993688,0.21254,94100.0,94074.0,0.0210516]
[1734920993689,0.212511,94113.0,94074.0,0.0210516]
[1734920993952,0.0806,94105.0,94080.0,0.17033446]
[1734920994189,0.1013084,94104.0,94081.0,0.01913861]
[1734920994390,0.00053924,94107.0,94090.0,0.17033446]
[1734920994591,0.00053924,94107.0,94082.0,0.43173595]
[1734920995110,0.00053924,94107.0,94090.0,0.17033446]
[1734920995321,0.212582,94081.0,94064.0,0.03758182]
[1734920995541,0.1013084,94080.0,94064.0,0.01197804]
[1734920995785,0.00132872,94079.0,94044.0,0.53173595]
[1734920995961,0.1013084,94078.0,94045.0,0.3139724]
[1734920996362,0.1013084,94078.0,94045.0,0.1013084]
[1734920996557,0.212592,94077.0,94045.0,0.1013084]
[1734920996774,0.1013084,94076.0,94045.0,0.3139724]
[1734920996974,0.1013084,94076.0,94047.0,0.212659]
[1734920997328,0.0494,94079.0,94051.0,0.15]
[1734920997490,0.00016172,94076.0,94060.0,0.17033446]
[1734920997706,0.00016172,94076.0,94075.0,0.02141027]
[1734920998087,0.10147012,94076.0,94075.0,0.02141027]
[1734920999370,0.10673954,94076.0,94075.0,0.02141027]
[1734921000293,0.10873954,94076.0,94075.0,0.02141027]
[1734921001714,0.10873954,94076.0,94042.0,0.43173595]
[1734921001918,0.1,94062.0,94031.0,0.43173595]
[1734921002124,0.212646,94053.0,94023.0,0.212712]
[1734921002326,0.1013084,94052.0,94023.0,0.212712]
[1734921002527,0.1013084,94052.0,94021.0,0.43173595]
[1734921002682,0.21265,94051.0,94021.0,0.43173595]
[1734921002887,0.1013084,94050.0,94023.0,0.212713]
[1734921003074,0.1,94070.0,94049.0,0.02090796]
[1734921003274,0.1013084,94069.0,94050.0,0.17033446]
[1734921003495,0.00132879,94068.0,94051.0,0.01914132]
[1734921003695,0.212616,94066.0,94049.0,0.02090796]
[1734921003874,0.20263729,94065.0,94049.0,0.02090796]
[1734921004282,0.006,94070.0,94049.0,0.001]
[1734921004499,0.12853114,94076.0,94048.0,0.15]
[1734921004713,0.00543114,94076.0,94064.0,0.02149936]
[1734921005602,0.1013084,94075.0,94064.0,0.02149936]
[1734921005807,0.2126,94073.0,94064.0,0.02149936]
[1734921006040,0.1013084,94072.0,94064.0,0.02149936]
[1734921006244,0.1013084,94073.0,94064.0,0.02149936]
[1734921006390,0.0825,94102.0,94073.0,0.2126]
[1734921006604,0.00053924,94088.0,94078.0,0.15]
[1734921006814,0.00053924,94088.0,94079.0,0.00106276]
[1734921007009,0.00053924,94088.0,94080.0,0.212585]
[1734921007170,0.00053924,94088.0,94087.0,0.02162285]
[1734921007366,0.00053924,94088.0,94068.0,0.21261]
[1734921007651,0.00053924,94088.0,94076.0,0.212594]
[1734921007834,0.00053924,94088.0,94087.0,0.02177614]
[1734921008048,0.1495,94123.0,94094.0,0.212553]
[1734921008251,0.1495,94123.0,94096.0,0.212548]
[1734921008252,0.00016167,94107.0,94096.0,0.212548]
[1734921008451,0.00016167,94107.0,94089.0,0.212564]
[1734921008801,0.00016167,94107.0,94093.0,0.212555]
[1734921009029,0.00016167,94107.0,94094.0,0.21334751]
[1734921009233,0.00016167,94107.0,94100.0,0.212537]
[1734921009447,0.00016167,94107.0,94101.0,0.0007943]
[1734921009649,0.00016167,94107.0,94103.0,0.212532]
[1734921009970,1e-08,94107.0,94105.0,0.212528]
[1734921010173,1e-08,94107.0,94106.0,0.0007941]
[1734921010555,8.54e-05,94129.0,94106.0,0.0007941]
[1734921010556,4.541e-05,94129.0,94106.0,0.02230598]
[1734921010763,0.1013084,94128.0,94106.0,0.02230598]
[1734921010959,0.001,94107.0,94106.0,0.02230598]
[1734921011166,0.001,94107.0,94106.0,0.06725769]
[1734921011717,0.002,94107.0,94106.0,0.07525769]
[1734921012281,0.002,94107.0,94103.0,0.15978969]
[1734921012489,0.002,94107.0,94103.0,0.37232169]
[1734921012693,4.541e-05,94129.0,94110.0,0.17033446]
[1734921012897,4.541e-05,94129.0,94119.0,0.17033446]
[1734921013061,8.54e-05,94140.0,94120.0,0.64422995]
[1734921013268,0.00024704,94140.0,94120.0,0.43173595]
[1734921013680,0.00024704,94140.0,94121.0,0.212492]
[1734921013878,0.00024704,94140.0,94139.0,0.02135227]
[1734921014487,0.0459,94158.0,94140.0,0.43173595]
[1734921014687,0.0826854,94168.0,94142.0,0.64418095]
[1734921014934,0.04861713,94168.0,94142.0,0.43173595]
[1734921015113,0.1013084,94167.0,94149.0,0.212427]
[1734921015310,0.00016162,94173.0,94151.0,0.15]
[1734921015592,0.2778766,94216.0,94151.0,0.15]
[1734921015796,0.02130332,94278.0,94240.0,0.1]
[1734921016006,0.001326,94277.0,94250.0,0.1]
[1734921016254,0.00132602,94298.0,94247.0,0.1]
[1734921016427,0.00132602,94298.0,94232.0,0.43173595]
[1734921016428,0.1013084,94291.0,94276.0,0.02166511]
[1734921016629,0.00132589,94290.0,94254.0,0.15]
[1734921016847,0.1013084,94289.0,94258.0,0.212183]
[1734921017037,0.1013084,94289.0,94257.0,0.15]
[1734921017230,0.1013084,94289.0,94277.0,0.01247145]
[1734921017433,0.1013084,94289.0,94257.0,0.13577985]
[1734921017726,0.212118,94287.0,94277.0,0.83584932]
[1734921017969,0.1013084,94282.0,94277.0,0.83584932]
[1734921018170,0.10263428,94281.0,94277.0,0.83584932]
[1734921018398,0.1013084,94281.0,94278.0,1.53034411]
[1734921018557,0.1013084,94280.0,94278.0,1.53034411]
[1734921018961,0.1013084,94279.0,94266.0,0.04328149]
[1734921019212,0.00132595,94278.0,94241.0,0.1]
[1734921019443,0.1012684,94276.0,94267.0,2.42486213]
[1734921019572,0.212147,94274.0,94267.0,2.42486213]
[1734921019776,0.21212,94286.0,94267.0,2.42486213]
[1734921019777,0.1013084,94268.0,94267.0,2.42486213]
[1734921020014,0.212217,94243.0,94242.0,0.14629718]
[1734921020219,0.212217,94243.0,94167.0,0.58926839]
[1734921020220,0.1,94223.0,94167.0,0.58926839]
[1734921020422,0.31489921,94222.0,94181.0,0.212356]
[1734921020614,0.1013084,94220.0,94169.0,0.0534832]
[1734921020972,0.00132683,94219.0,94215.0,0.18740273]
[1734921021103,0.1013084,94218.0,94215.0,0.18740273]
[1734921021302,0.21360179,94217.0,94215.0,0.18740273]
[1734921021512,0.21228,94215.0,94190.0,0.02114686]
[1734921021714,0.212286,94213.0,94190.0,0.02114686]
[1734921021939,0.212289,94211.0,94190.0,0.02114686]
[1734921022141,0.10263529,94210.0,94190.0,0.02114686]
[1734921022339,0.09154528,94210.0,94191.0,0.00106151]
[1734921022541,0.00016151,94220.0,94191.0,0.00106151]
[1734921022745,0.1013084,94219.0,94187.0,0.00106135]
[1734921023085,0.002,94213.0,94190.0,0.001]
[1734921023297,0.10263538,94212.0,94190.0,0.00106158]
[1734921023499,0.212289,94211.0,94190.0,0.02125308]
[1734921023651,0.212293,94209.0,94191.0,0.001]
[1734921023848,0.21228,94216.0,94190.0,0.02125308]
[1734921023849,0.10263536,94208.0,94190.0,0.02125308]
[1734921024283,0.10263536,94208.0,94190.0,0.02225308]
[1734921024690,0.002,94213.0,94191.0,0.00106151]
[1734921024864,0.1013084,94212.0,94190.0,0.02225308]
[1734921025066,0.1013084,94212.0,94191.0,0.00106141]
[1734921025265,0.1013084,94212.0,94193.0,0.15]
[1734921025470,0.1013084,94212.0,94194.0,0.00106141]
[1734921025664,0.1013084,94212.0,94190.0,0.02125308]
[1734921025877,0.00132676,94211.0,94191.0,0.001]
[1734921026076,0.212293,94209.0,94190.0,0.02125308]
[1734921026372,0.1026353,94208.0,94191.0,0.00106152]
[1734921027316,0.1026353,94208.0,94173.0,0.0443146]
[1734921027490,0.1026353,94208.0,94172.0,0.212376]
[1734921027695,0.1026353,94208.0,94173.0,0.212374]
[1734921028100,0.00016151,94220.0,94193.0,0.02075801]
[1734921028301,0.1013084,94219.0,94193.0,0.02075801]
[1734921028717,0.10263514,94218.0,94193.0,0.02075801]
[1734921028916,0.003,94208.0,94193.0,0.02075801]
[1734921029144,0.1013084,94207.0,94193.0,0.02075801]
[1734921029385,0.0811,94218.0,94193.0,0.02075801]
[1734921029581,0.1013084,94217.0,94193.0,0.02175801]
[1734921029779,0.10263515,94217.0,94193.0,0.02075801]
[1734921030189,0.002,94208.0,94193.0,0.02075801]
[1734921030417,0.1013084,94217.0,94193.0,0.02075801]
[1734921030815,0.1043084,94217.0,94193.0,0.02075801]
[1734921030954,0.1043084,94217.0,94194.0,0.212327]
[1734921031804,0.003,94217.0,94208.0,4.0]
[1734921032382,0.1013084,94216.0,94208.0,3.872]
[1734921032596,0.212285,94213.0,94208.0,3.872]
[1734921032978,0.1013084,94212.0,94208.0,3.872]
[1734921033790,0.00016151,94220.0,94208.0,3.872]
[1734921033965,0.1013084,94219.0,94208.0,3.872]
[1734921034710,8.53e-05,94212.0,94208.0,3.8721706]
[1734921035606,0.00012909,94220.0,94208.0,3.8721706]
[1734921035815,0.1013084,94219.0,94208.0,3.8721706]
[1734921036019,0.1043084,94219.0,94208.0,3.8731706]
[1734921036247,0.1013084,94219.0,94208.0,3.8721706]
[1734921036599,0.1013084,94219.0,94208.0,3.8741706]
[1734921036802,0.1013084,94218.0,94208.0,3.8721706]
[1734921037212,0.00012909,94220.0,94208.0,3.8721706]
[1734921037543,0.1013084,94219.0,94208.0,3.7441706]
[1734921037672,0.424574,94212.0,94208.0,3.7441706]
[1734921038043,0.212291,94210.0,94208.0,3.7441706]
[1734921038255,0.1013084,94209.0,94208.0,3.7441706]
[1734921039334,0.20473535,94209.0,94208.0,3.6660706]
[1734921039566,0.45473535,94209.0,94208.0,3.6579416]
[1734921039766,0.4534084,94209.0,94208.0,3.6579416]
[1734921039970,0.6547168,94209.0,94208.0,3.4092816]
[1734921040169,0.4743084,94209.0,94208.0,2.1634138]
[1734921040320,0.4743084,94209.0,94208.0,1.8671138]
[1734921040526,0.8803844,94209.0,94208.0,1.53772452]
[1734921040735,0.9873844,94209.0,94208.0,1.34233941]
[1734921040933,1.0886928,94209.0,94208.0,1.28713869]
[1734921041133,1.10256858,94209.0,94208.0,1.28613869]
[1734921041295,1.10256858,94209.0,94208.0,1.25480661]
[1734921041497,1.20170206,94209.0,94208.0,0.83578028]
[1734921041723,1.19470206,94209.0,94208.0,0.65132625]
[1734921042348,1.19470206,94209.0,94208.0,0.52332625]
[1734921042565,1.13460111,94209.0,94208.0,0.38243276]
[1734921042780,0.5637054,94163.0,94116.0,0.0453]
[1734921043015,1.417437,94163.0,94110.0,0.0753]
[1734921043229,2.654675,94163.0,94110.0,0.0753]
[1734921043429,2.768544,94163.0,94162.0,6e-07]
[1734921043658,0.685397,94163.0,94162.0,6e-07]
[1734921043803,0.8880138,94163.0,94162.0,6e-07]
[1734921044007,0.9093801,94163.0,94162.0,6e-07]
[1734921044219,0.9093801,94163.0,94162.0,2.1e-07]
[1734921044380,0.9123801,94163.0,94162.0,2.1e-07]
[1734921044581,0.212508,94114.0,94096.0,0.0475]
[1734921044785,0.212508,94114.0,94113.0,0.00033242]
[1734921044786,0.4138164,94114.0,94113.0,0.00033242]
[1734921044987,0.72644764,94114.0,94113.0,0.00033242]
[1734921045196,0.6638164,94114.0,94113.0,0.00033242]
[1734921045440,0.4638164,94114.0,94113.0,0.00033242]
[1734921045631,0.1013084,94114.0,94113.0,0.00033242]
[1734921046047,0.10263675,94114.0,94113.0,0.00033242]
[1734921046698,0.1013084,94114.0,94113.0,0.00033242]
[1734921047119,0.1073084,94114.0,94113.0,0.00033242]
[1734921047321,0.1073084,94114.0,94078.0,0.212587]
[1734921047527,0.10263665,94113.0,94095.0,0.00016164]
[1734921048110,0.212515,94111.0,94098.0,0.02091297]
[1734921048316,0.10263673,94110.0,94098.0,0.02091297]
[1734921048520,0.212519,94109.0,94098.0,0.02091297]
[1734921048711,0.10263673,94108.0,94098.0,0.02091297]
[1734921049129,0.006,94114.0,94099.0,0.0793]
[1734921049299,0.006,94114.0,94107.0,0.212523]
[1734921049501,0.006,94114.0,94101.0,0.212537]
[1734921049702,0.1,94136.0,94101.0,0.212537]
[1734921049926,0.31509642,94135.0,94101.0,0.212537]
[1734921050128,0.31509642,94135.0,94100.0,0.0471]
[1734921050129,0.004,94113.0,94100.0,0.0471]
[1734921050327,0.21248,94127.0,94100.0,0.0471]
[1734921050679,0.21246,94135.0,94100.0,0.0471]
[1734921050680,0.10263652,94126.0,94100.0,0.0471]
[1734921051992,0.10263652,94126.0,94116.0,0.02132878]
[1734921052313,0.10263652,94126.0,94107.0,0.212523]
[1734921052558,0.00132812,94139.0,94102.0,0.023]
[1734921052762,0.1013084,94138.0,94102.0,0.023]
[1734921052965,0.00132793,94137.0,94122.0,0.02129899]
[1734921053182,0.005,94126.0,94122.0,0.02129899]
[1734921053558,0.1013084,94136.0,94122.0,0.02129899]
[1734921053754,0.00132793,94135.0,94103.0,0.212533]
[1734921053966,0.1013084,94134.0,94103.0,0.212533]
[1734921054187,0.00132802,94133.0,94103.0,0.212533]
[1734921054432,0.005,94126.0,94110.0,0.023]
[1734921054587,0.005,94126.0,94104.0,0.212529]
[1734921054792,0.1013084,94125.0,94115.0,0.02108193]
[1734921055891,0.001328,94124.0,94107.0,0.0452]
[1734921056105,0.001328,94124.0,94099.0,0.01972878]
[1734921056106,0.1013084,94119.0,94102.0,0.02094787]
[1734921056314,0.00132832,94118.0,94099.0,0.01972878]
[1734921056532,0.212503,94116.0,94099.0,0.01972878]
[1734921056750,0.10263672,94115.0,94099.0,0.04112991]
[1734921056956,0.1013084,94115.0,94099.0,0.04112991]
[1734921057155,0.212465,94133.0,94099.0,0.04112991]
[1734921057360,0.003,94119.0,94096.0,0.12567791]
[1734921057566,0.25263646,94132.0,94094.0,0.04378985]
[1734921057567,0.1013084,94111.0,94099.0,0.02081746]
[1734921057773,0.21384542,94110.0,94084.0,0.0452]
[1734921057978,0.212521,94108.0,94084.0,0.0452]
[1734921058197,0.1013084,94107.0,94093.0,0.02169638]
[1734921059239,0.01,94119.0,94095.0,0.10147004]
[1734921059446,0.01,94119.0,94100.0,0.2761552]
[1734921059658,0.35064515,94154.0,94115.0,0.212504]
[1734921059857,0.008,94133.0,94123.0,0.0491]
[1734921060065,0.1013084,94149.0,94130.0,0.21247]
[1734921060271,0.13822615,94154.0,94131.0,0.023]
[1734921060504,8.56e-05,94163.0,94138.0,0.212451]
[1734921060746,0.1013084,94162.0,94138.0,0.212451]
[1734921060911,0.1013084,94162.0,94148.0,0.02179853]
[1734921061361,8.56e-05,94163.0,94149.0,0.212428]
[1734921061569,8.56e-05,94163.0,94148.0,0.02179853]
[1734921061772,8.56e-05,94163.0,94150.0,0.212424]
[1734921062451,8.56e-05,94163.0,94156.0,0.212412]
[1734921062660,8.56e-05,94163.0,94158.0,0.212408]
[1734921062864,8.56e-05,94163.0,94157.0,0.0499]
[1734921063058,0.3137074,94162.0,94148.0,0.02179853]
[1734921063259,0.1013084,94162.0,94137.0,0.0499]
[1734921063779,0.1013084,94162.0,94147.0,0.02151762]
[1734921063900,0.21372959,94161.0,94137.0,0.0499]
[1734921064100,0.1013084,94160.0,94143.0,0.21244]
[1734921064412,0.0100856,94163.0,94147.0,0.02134098]
[1734921064613,0.1013084,94162.0,94147.0,0.02134098]
[1734921065320,0.1,94214.0,94162.0,0.235399]
[1734921065515,0.27645241,94231.0,94206.0,0.2123]
[1734921065743,0.27645241,94231.0,94214.0,0.212282]
[1734921065996,0.12553517,94215.0,94214.0,0.212282]
[1734921066127,0.19561384,94219.0,94215.0,0.212279]
[1734921066329,0.07519429,94219.0,94218.0,0.023]
[1734921066530,0.01758139,94219.0,94218.0,0.1243084]
[1734921066740,0.27645241,94232.0,94231.0,0.235244]
[1734921066951,0.26259714,94232.0,94231.0,0.4865524]
[1734921067151,0.2147084,94232.0,94231.0,0.64530347]
[1734921067393,0.1917084,94232.0,94231.0,0.43305947]
[1734921067597,0.00016161,94232.0,94231.0,0.1252]
[1734921067796,0.00016161,94232.0,94231.0,0.14605027]
[1734921067797,0.00116161,94232.0,94231.0,0.14605027]
[1734921068284,0.00016161,94232.0,94231.0,0.14605027]
[1734921068491,0.00116161,94232.0,94231.0,0.14605027]
[1734921068785,0.00016161,94232.0,94231.0,0.27035867]
[1734921069003,0.00016161,94232.0,94231.0,0.16905027]
[1734921069589,0.00016161,94232.0,94231.0,0.27035867]
[1734921070765,0.00116161,94232.0,94231.0,0.27035867]
[1734921072067,0.00116161,94232.0,94231.0,0.29605027]
[1734921072217,0.00116161,94232.0,94231.0,0.2752]
[1734921072420,0.00116161,94232.0,94231.0,0.1472]
[1734921073211,0.00116161,94232.0,94229.0,0.212248]
[1734921073493,0.00016161,94232.0,94229.0,0.212248]
[1734921073749,0.00016161,94232.0,94231.0,0.771244]
[1734921073958,0.00124721,94232.0,94231.0,0.8725524]
[1734921074127,0.00024721,94232.0,94231.0,0.8725524]
[1734921074366,0.00024721,94232.0,94231.0,0.559]
[1734921074562,0.00124721,94232.0,94231.0,0.686]
[1734921074766,0.00124721,94232.0,94231.0,0.536]
[1734921075396,0.00024721,94232.0,94231.0,0.536]
[1734921076134,0.10155561,94232.0,94231.0,0.536]
[1734921076359,0.10155561,94232.0,94217.0,0.15]
[1734921076562,0.00024721,94232.0,94217.0,0.15]
[1734921077163,0.00024721,94232.0,94218.0,0.424546]
[1734921077339,0.00124721,94232.0,94219.0,0.022]
[1734921077579,0.00024721,94232.0,94218.0,0.212273]
[1734921077748,0.00124721,94232.0,94221.0,0.023]
[1734921078287,0.00024721,94232.0,94221.0,0.023]
[1734921078501,0.00124721,94232.0,94221.0,0.023]
[1734921078647,0.00124721,94232.0,94227.0,0.212252]
[1734921079288,0.00124721,94232.0,94228.0,0.02093845]
[1734921079643,0.00024721,94232.0,94228.0,0.02093845]
[1734921080197,0.00124721,94232.0,94216.0,0.023]
[1734921080372,0.00024721,94232.0,94221.0,0.02104047]
[1734921080783,0.00124721,94232.0,94221.0,0.02104047]
[1734921080999,0.00024721,94232.0,94221.0,0.02104047]
[1734921081372,0.00124721,94232.0,94221.0,0.02104047]
[1734921081600,0.00024721,94232.0,94221.0,0.02104047]
[1734921081798,0.00024721,94232.0,94222.0,0.212264]
[1734921082005,0.00024721,94232.0,94224.0,0.212258]
[1734921082348,0.00024721,94232.0,94231.0,0.023]
[1734921082556,0.00024721,94232.0,94231.0,0.3549084]
[1734921082968,0.00124721,94232.0,94231.0,0.3549084]
[1734921083385,0.00024721,94232.0,94231.0,0.3549084]
[1734921083588,0.00124721,94232.0,94231.0,0.5671524]
[1734921083900,0.00124721,94232.0,94231.0,0.6096134]
[1734921084489,0.00124721,94232.0,94231.0,0.442844]
[1734921084788,0.00124721,94232.0,94231.0,0.362244]
[1734921085007,0.00124721,94232.0,94231.0,0.212244]
[1734921085549,0.00124721,94232.0,94225.0,0.212257]
[1734921085550,0.00124721,94232.0,94225.0,0.424514]
[1734921086063,0.00124721,94232.0,94221.0,0.02104047]
[1734921086064,0.00024721,94232.0,94221.0,0.02104047]
[1734921086267,0.00124721,94232.0,94231.0,0.002]
[1734921087041,0.00024721,94232.0,94221.0,0.02104047]
[1734921087275,0.00024721,94232.0,94222.0,0.212264]
[1734921087546,0.00124721,94232.0,94225.0,0.002]
[1734921087747,0.00024721,94232.0,94223.0,0.424523]
[1734921087906,8.55e-05,94258.0,94257.0,0.212185]
[1734921088115,0.00132587,94299.0,94257.0,0.212185]
[1734921088340,0.1013084,94285.0,94250.0,0.212199]
[1734921088572,0.1013084,94285.0,94256.0,0.02149923]
[1734921088573,0.212129,94282.0,94256.0,0.02149923]
[1734921088760,0.212134,94280.0,94256.0,0.23368623]
[1734921088961,0.1013084,94279.0,94256.0,0.23368623]
[1734921089162,0.10146992,94279.0,94256.0,0.23368623]
[1734921089737,0.10146992,94279.0,94256.0,0.23468623]
[1734921089940,0.10146992,94279.0,94256.0,0.23368623]
[1734921090138,0.10146992,94279.0,94250.0,0.2122]
[1734921090406,0.212138,94278.0,94252.0,0.02124419]
[1734921090681,0.1013084,94277.0,94252.0,0.02124419]
[1734921090881,0.212143,94276.0,94252.0,0.02124419]
[1734921091082,0.1013084,94275.0,94252.0,0.02124419]
[1734921091384,0.15,94265.0,94228.0,0.212249]
[1734921091556,0.31480462,94264.0,94235.0,0.212235]
[1734921091736,0.10263462,94263.0,94229.0,0.212248]
[1734921092112,0.1013084,94263.0,94249.0,0.212203]
[1734921092543,0.1013084,94263.0,94236.0,0.02142697]
[1734921092741,0.1013084,94263.0,94245.0,0.212211]
[1734921092948,0.1013084,94263.0,94236.0,0.02142697]
[1734921093070,0.1013084,94263.0,94248.0,0.212205]
[1734921093271,0.1053084,94263.0,94248.0,0.212205]
[1734921093498,0.00016152,94279.0,94234.0,0.212235]
[1734921093709,0.1013084,94278.0,94235.0,0.2743084]
[1734921093913,0.001,94263.0,94256.0,0.212187]
[1734921094117,0.001,94263.0,94255.0,0.02080214]
[1734921094323,0.001,94263.0,94259.0,0.212179]
[1734921094628,0.001,94263.0,94259.0,0.424358]
[1734921094856,0.001,94263.0,94259.0,0.212179]